[Event "Titled Tuesday Blitz January 25 2022"]
[White "Martinez, Shawn"]
[Black "Yang, Kaiqi"]
[WhiteFideId "2039770"]
[BlackFideId "8604398"]
[WhiteElo "2174"]
[BlackElo "2373"]
[Result "0-1"]
[Round "10"]
[TimeControl "180+1"]
[Date "2022.01.26"]
[WhiteClock "0:00:02"]
[BlackClock "0:00:12"]

1. e4 {[%clk 0:03:00]}  c5 {[%clk 0:02:59]} 2. Nc3 {[%clk 0:02:57]}  Nc6 {[%clk 0:02:59]} 3. Bb5 {[%clk 0:02:53]}  Nd4 {[%clk 0:02:58]} 4. Nf3 {[%clk 0:02:52]}  e6 {[%clk 0:02:56]} 5. O-O {[%clk 0:02:45]}  Ne7 {[%clk 0:02:56]} 6. Nxd4 {[%clk 0:02:44]}  cxd4 {[%clk 0:02:57]} 7. Ne2 {[%clk 0:02:44]}  Qb6 {[%clk 0:02:56]} 8. Bd3 {[%clk 0:02:43]}  Nc6 {[%clk 0:02:56]} 9. b3 {[%clk 0:02:41]}  a5 {[%clk 0:02:50]} 10. a3 {[%clk 0:02:25]}  Bc5 {[%clk 0:02:42]} 11. Bb2 {[%clk 0:02:24]}  O-O {[%clk 0:02:33]} 12. f4 {[%clk 0:02:14]}  f5 {[%clk 0:02:33]} 13. exf5 {[%clk 0:01:47]}  exf5 {[%clk 0:02:34]} 14. Bc4+ {[%clk 0:01:38]}  Kh8 {[%clk 0:02:31]} 15. Nc1 {[%clk 0:01:34]}  Qd8 {[%clk 0:02:23]} 16. Nd3 {[%clk 0:01:31]}  d5 {[%clk 0:02:11]} 17. Nxc5 {[%clk 0:01:14]}  dxc4 {[%clk 0:02:11]} 18. bxc4 {[%clk 0:01:15]}  b6 {[%clk 0:02:05]} 19. Nd3 {[%clk 0:01:11]}  Ba6 {[%clk 0:02:01]} 20. Qf3 {[%clk 0:00:59]}  Rc8 {[%clk 0:01:54]} 21. Qd5 {[%clk 0:00:44]}  Qf6 {[%clk 0:01:24]} 22. Rae1 {[%clk 0:00:21]}  Rfd8 {[%clk 0:01:14]} 23. Qe6 {[%clk 0:00:19]}  Qxe6 {[%clk 0:01:13]} 24. Rxe6 {[%clk 0:00:18]}  Bxc4 {[%clk 0:01:14]} 25. Ree1 {[%clk 0:00:10]}  Kg8 {[%clk 0:01:04]} 26. Rf3 {[%clk 0:00:10]}  Bxd3 {[%clk 0:00:58]} 27. Rxd3 {[%clk 0:00:09]}  Kf7 {[%clk 0:00:58]} 28. Kf2 {[%clk 0:00:09]}  b5 {[%clk 0:00:57]} 29. h3 {[%clk 0:00:08]}  Rd6 {[%clk 0:00:56]} 30. g4 {[%clk 0:00:08]}  g6 {[%clk 0:00:54]} 31. Kf3 {[%clk 0:00:08]}  Rcd8 {[%clk 0:00:54]} 32. c3 {[%clk 0:00:06]}  dxc3 {[%clk 0:00:53]} 33. Rxd6 {[%clk 0:00:07]}  Rxd6 {[%clk 0:00:53]} 34. Bxc3 {[%clk 0:00:07]}  b4 {[%clk 0:00:53]} 35. axb4 {[%clk 0:00:06]}  axb4 {[%clk 0:00:54]} 36. Be5 {[%clk 0:00:06]}  Rxd2 {[%clk 0:00:50]} 37. gxf5 {[%clk 0:00:06]}  gxf5 {[%clk 0:00:50]} 38. Rc1 {[%clk 0:00:05]}  Nxe5+ {[%clk 0:00:44]} 39. fxe5 {[%clk 0:00:06]}  Ke6 {[%clk 0:00:42]} 40. Rc5 {[%clk 0:00:05]}  b3 {[%clk 0:00:37]} 41. Rb5 {[%clk 0:00:04]}  b2 {[%clk 0:00:37]} 42. Kf4 {[%clk 0:00:04]}  Rf2+ {[%clk 0:00:37]} 43. Kg5 {[%clk 0:00:04]}  Rg2+ {[%clk 0:00:30]} 44. Kf4 {[%clk 0:00:03]}  Rf2+ {[%clk 0:00:28]} 45. Kg5 {[%clk 0:00:04]}  Re2 {[%clk 0:00:25]} 46. Kf4 {[%clk 0:00:03]}  h6 {[%clk 0:00:12]} 47. Rb6+ {[%clk 0:00:02]}  Kd5 {[%clk 0:00:12]} 48. Kxf5 {[%clk 0:00:02]}  Rf2+ {[%clk 0:00:13]} 49. Kg4 {[%clk 0:00:02]}  Kxe5 {[%clk 0:00:12]} 0-1


[Site "https://www.chess.com"]

[Event "Titled Tuesday Blitz January 25 2022"]
[White "Mitusov, Semen"]
[Black "Zong, Davis"]
[WhiteFideId "14151049"]
[BlackFideId "30903955"]
[WhiteElo "2246"]
[BlackElo "2061"]
[Result "1-0"]
[Round "10"]
[TimeControl "180+1"]
[Date "2022.01.26"]
[WhiteClock "0:01:21"]
[BlackClock "0:00:22"]

1. e4 {[%clk 0:03:00]}  e5 {[%clk 0:02:59]} 2. Nf3 {[%clk 0:02:59]}  Nc6 {[%clk 0:03:00]} 3. Bc4 {[%clk 0:02:59]}  Nf6 {[%clk 0:03:00]} 4. d3 {[%clk 0:03:00]}  Be7 {[%clk 0:03:00]} 5. Nc3 {[%clk 0:02:59]}  O-O {[%clk 0:02:59]} 6. O-O {[%clk 0:03:00]}  d6 {[%clk 0:02:59]} 7. Be3 {[%clk 0:02:58]}  Na5 {[%clk 0:02:59]} 8. Bb3 {[%clk 0:02:56]}  Nxb3 {[%clk 0:02:58]} 9. axb3 {[%clk 0:02:57]}  c6 {[%clk 0:02:55]} 10. d4 {[%clk 0:02:56]}  Qc7 {[%clk 0:02:50]} 11. h3 {[%clk 0:02:55]}  a6 {[%clk 0:02:43]} 12. Qe2 {[%clk 0:02:48]}  b5 {[%clk 0:02:42]} 13. dxe5 {[%clk 0:02:45]}  dxe5 {[%clk 0:02:42]} 14. Bg5 {[%clk 0:02:41]}  h6 {[%clk 0:02:40]} 15. Bh4 {[%clk 0:02:40]}  Be6 {[%clk 0:02:38]} 16. Rfd1 {[%clk 0:02:39]}  Rfd8 {[%clk 0:02:25]} 17. Bg3 {[%clk 0:02:34]}  Nd7 {[%clk 0:02:23]} 18. Rd2 {[%clk 0:02:32]}  f6 {[%clk 0:02:18]} 19. Rad1 {[%clk 0:02:31]}  a5 {[%clk 0:02:13]} 20. Nd4 {[%clk 0:02:28]}  Bf7 {[%clk 0:02:10]} 21. Nf5 {[%clk 0:02:26]}  Bf8 {[%clk 0:02:05]} 22. Qg4 {[%clk 0:02:23]}  Kh8 {[%clk 0:02:02]} 23. Nxh6 {[%clk 0:02:20]}  Be8 {[%clk 0:01:47]} 24. Nf7+ {[%clk 0:02:17]}  Kg8 {[%clk 0:01:44]} 25. Nxd8 {[%clk 0:02:11]}  Rxd8 {[%clk 0:01:44]} 26. Bh4 {[%clk 0:02:05]}  Kh8 {[%clk 0:01:26]} 27. Ne2 {[%clk 0:02:01]}  Bb4 {[%clk 0:01:16]} 28. c3 {[%clk 0:02:01]}  Bc5 {[%clk 0:01:16]} 29. Ng3 {[%clk 0:01:59]}  Bf8 {[%clk 0:01:00]} 30. Nh5 {[%clk 0:01:57]}  Qb7 {[%clk 0:00:56]} 31. Ng3 {[%clk 0:01:42]}  Qc7 {[%clk 0:00:46]} 32. Nf5 {[%clk 0:01:38]}  a4 {[%clk 0:00:39]} 33. bxa4 {[%clk 0:01:37]}  bxa4 {[%clk 0:00:40]} 34. Bg3 {[%clk 0:01:32]}  Rb8 {[%clk 0:00:34]} 35. Nxg7 {[%clk 0:01:21]}  Bf7 {[%clk 0:00:22]} 1-0


[Site "https://www.chess.com"]

[Event "Titled Tuesday Blitz January 25 2022"]
[White "Nazaretyan, Tigran"]
[Black "Zelbel, Patrick"]
[WhiteFideId "24162345"]
[BlackFideId "24624322"]
[WhiteElo "2192"]
[BlackElo "2493"]
[Result "1/2-1/2"]
[Round "10"]
[TimeControl "180+1"]
[Date "2022.01.26"]
[WhiteClock "0:00:52"]
[BlackClock "0:00:14"]

1. d4 {[%clk 0:03:00]}  g6 {[%clk 0:02:59]} 2. e4 {[%clk 0:03:00]}  Bg7 {[%clk 0:03:00]} 3. c4 {[%clk 0:03:00]}  c5 {[%clk 0:03:00]} 4. d5 {[%clk 0:03:00]}  e6 {[%clk 0:03:00]} 5. Nc3 {[%clk 0:02:58]}  d6 {[%clk 0:03:00]} 6. Bd3 {[%clk 0:02:55]}  Ne7 {[%clk 0:02:58]} 7. Nge2 {[%clk 0:02:55]}  O-O {[%clk 0:02:59]} 8. O-O {[%clk 0:02:54]}  a6 {[%clk 0:02:58]} 9. a4 {[%clk 0:02:53]}  Nd7 {[%clk 0:02:57]} 10. f4 {[%clk 0:02:46]}  exd5 {[%clk 0:02:48]} 11. cxd5 {[%clk 0:02:46]}  f5 {[%clk 0:02:48]} 12. Ng3 {[%clk 0:02:36]}  Nf6 {[%clk 0:02:40]} 13. e5 {[%clk 0:02:31]}  dxe5 {[%clk 0:02:00]} 14. Bc4 {[%clk 0:02:27]}  Kh8 {[%clk 0:01:39]} 15. fxe5 {[%clk 0:02:25]}  Ng4 {[%clk 0:01:39]} 16. e6 {[%clk 0:02:20]}  Qd6 {[%clk 0:01:22]} 17. Bf4 {[%clk 0:02:14]}  Be5 {[%clk 0:01:16]} 18. Qd2 {[%clk 0:02:11]}  Rd8 {[%clk 0:01:09]} 19. h3 {[%clk 0:02:10]}  Bxf4 {[%clk 0:01:06]} 20. Qxf4 {[%clk 0:02:10]}  Qxf4 {[%clk 0:01:06]} 21. Rxf4 {[%clk 0:02:09]}  Ne3 {[%clk 0:01:07]} 22. Re1 {[%clk 0:01:54]}  Nxc4 {[%clk 0:01:03]} 23. Rxc4 {[%clk 0:01:54]}  b6 {[%clk 0:00:58]} 24. a5 {[%clk 0:01:54]}  Bb7 {[%clk 0:00:55]} 25. axb6 {[%clk 0:01:46]}  Rac8 {[%clk 0:00:46]} 26. Re5 {[%clk 0:01:44]}  Bxd5 {[%clk 0:00:42]} 27. Nxd5 {[%clk 0:01:41]}  Rxd5 {[%clk 0:00:43]} 28. b7 {[%clk 0:01:38]}  Rxe5 {[%clk 0:00:38]} 29. bxc8=Q+ {[%clk 0:01:33]}  Nxc8 {[%clk 0:00:39]} 30. b4 {[%clk 0:01:31]}  Nb6 {[%clk 0:00:25]} 31. Rxc5 {[%clk 0:01:30]}  Rxe6 {[%clk 0:00:26]} 32. Kf2 {[%clk 0:01:27]}  Kg7 {[%clk 0:00:26]} 33. Ne2 {[%clk 0:01:26]}  Re4 {[%clk 0:00:20]} 34. Rc7+ {[%clk 0:01:19]}  Kg8 {[%clk 0:00:20]} 35. Ra7 {[%clk 0:01:14]}  Rxb4 {[%clk 0:00:20]} 36. Rxa6 {[%clk 0:01:15]}  Kf7 {[%clk 0:00:20]} 37. Ra7+ {[%clk 0:01:15]}  Kg8 {[%clk 0:00:19]} 38. Kf3 {[%clk 0:01:14]}  Nd5 {[%clk 0:00:19]} 39. g4 {[%clk 0:01:11]}  Rb3+ {[%clk 0:00:15]} 40. Kg2 {[%clk 0:01:07]}  f4 {[%clk 0:00:12]} 41. Nd4 {[%clk 0:01:06]}  Rg3+ {[%clk 0:00:11]} 42. Kh2 {[%clk 0:01:05]}  Rd3 {[%clk 0:00:11]} 43. Ne6 {[%clk 0:01:03]}  Rd2+ {[%clk 0:00:11]} 44. Kg1 {[%clk 0:01:03]}  Re2 {[%clk 0:00:06]} 45. Ng5 {[%clk 0:00:58]}  h5 {[%clk 0:00:06]} 46. gxh5 {[%clk 0:00:56]}  gxh5 {[%clk 0:00:07]} 47. Rd7 {[%clk 0:00:55]}  Ne3 {[%clk 0:00:06]} 48. Ne6 {[%clk 0:00:54]}  f3 {[%clk 0:00:04]} 49. Rg7+ {[%clk 0:00:54]}  Kh8 {[%clk 0:00:04]} 50. Rf7 {[%clk 0:00:54]}  Rg2+ {[%clk 0:00:04]} 51. Kh1 {[%clk 0:00:54]}  Rf2 {[%clk 0:00:05]} 52. Ng5 {[%clk 0:00:53]}  Rf1+ {[%clk 0:00:05]} 53. Kh2 {[%clk 0:00:53]}  f2 {[%clk 0:00:05]} 54. Ne4 {[%clk 0:00:51]}  Re1 {[%clk 0:00:04]} 55. Nxf2 {[%clk 0:00:50]}  Re2 {[%clk 0:00:04]} 56. Kg3 {[%clk 0:00:50]}  Kg8 {[%clk 0:00:03]} 57. Rf3 {[%clk 0:00:48]}  Nf1+ {[%clk 0:00:03]} 58. Kh4 {[%clk 0:00:48]}  Nd2 {[%clk 0:00:02]} 59. Rf4 {[%clk 0:00:47]}  Re5 {[%clk 0:00:02]} 60. Nd3 {[%clk 0:00:46]}  Rb5 {[%clk 0:00:02]} 61. Rb4 {[%clk 0:00:45]}  Rxb4+ {[%clk 0:00:02]} 62. Nxb4 {[%clk 0:00:45]}  Nf1 {[%clk 0:00:03]} 63. Kxh5 {[%clk 0:00:45]}  Ne3 {[%clk 0:00:03]} 64. Kg5 {[%clk 0:00:43]}  Ng2 {[%clk 0:00:04]} 65. Nd3 {[%clk 0:00:43]}  Kg7 {[%clk 0:00:04]} 66. Nf4 {[%clk 0:00:42]}  Nxf4 {[%clk 0:00:04]} 67. Kxf4 {[%clk 0:00:43]}  Kh7 {[%clk 0:00:05]} 68. Kg4 {[%clk 0:00:43]}  Kg7 {[%clk 0:00:05]} 69. Kg5 {[%clk 0:00:44]}  Kh7 {[%clk 0:00:06]} 70. Kh5 {[%clk 0:00:45]}  Kg7 {[%clk 0:00:07]} 71. Kg4 {[%clk 0:00:45]}  Kh7 {[%clk 0:00:07]} 72. h4 {[%clk 0:00:46]}  Kg7 {[%clk 0:00:08]} 73. Kg5 {[%clk 0:00:46]}  Kh7 {[%clk 0:00:09]} 74. Kh5 {[%clk 0:00:47]}  Kg7 {[%clk 0:00:10]} 75. Kg5 {[%clk 0:00:48]}  Kh7 {[%clk 0:00:11]} 76. h5 {[%clk 0:00:49]}  Kg7 {[%clk 0:00:12]} 77. h6+ {[%clk 0:00:50]}  Kh7 {[%clk 0:00:12]} 78. Kh5 {[%clk 0:00:50]}  Kh8 {[%clk 0:00:13]} 79. Kg6 {[%clk 0:00:51]}  Kg8 {[%clk 0:00:13]} 80. h7+ {[%clk 0:00:51]}  Kh8 {[%clk 0:00:14]} 81. Kh6 {[%clk 0:00:52]} 1/2-1/2


[Site "https://www.chess.com"]

[Event "Titled Tuesday Blitz January 25 2022"]
[White "Nozdrachev, Leonid"]
[Black "Dronavalli, Harika"]
[WhiteFideId "24113433"]
[BlackFideId "5015197"]
[WhiteElo "2124"]
[BlackElo "2382"]
[Result "0-1"]
[Round "10"]
[TimeControl "180+1"]
[Date "2022.01.26"]
[WhiteClock "0:00:26"]
[BlackClock "0:02:08"]

1. e4 {[%clk 0:02:58]}  c5 {[%clk 0:02:59]} 2. c3 {[%clk 0:02:58]}  d5 {[%clk 0:02:52]} 3. exd5 {[%clk 0:02:56]}  Qxd5 {[%clk 0:02:52]} 4. d4 {[%clk 0:02:56]}  Nc6 {[%clk 0:02:51]} 5. Nf3 {[%clk 0:02:56]}  Bf5 {[%clk 0:02:51]} 6. Na3 {[%clk 0:02:54]}  cxd4 {[%clk 0:02:43]} 7. Nb5 {[%clk 0:02:52]}  O-O-O {[%clk 0:02:42]} 8. cxd4 {[%clk 0:02:40]}  e5 {[%clk 0:02:37]} 9. Be2 {[%clk 0:02:10]}  exd4 {[%clk 0:02:34]} 10. Nfxd4 {[%clk 0:01:36]}  Nxd4 {[%clk 0:02:28]} 11. Nxd4 {[%clk 0:01:19]}  Qxd4 {[%clk 0:02:18]} 12. Bd2 {[%clk 0:01:15]}  Bb4 {[%clk 0:02:12]} 13. Rc1+ {[%clk 0:00:53]}  Kb8 {[%clk 0:02:11]} 14. O-O {[%clk 0:00:29]}  Bxd2 {[%clk 0:02:09]} 15. Rc4 {[%clk 0:00:26]}  Qd7 {[%clk 0:02:08]} 0-1


[Site "https://www.chess.com"]

[Event "Titled Tuesday Blitz January 25 2022"]
[White "Odegov, Artem"]
[Black "Ruperez Benito, Antonio"]
[WhiteFideId "34183644"]
[BlackFideId "22245049"]
[WhiteElo "2277"]
[BlackElo "2249"]
[Result "1-0"]
[Round "10"]
[TimeControl "180+1"]
[Date "2022.01.26"]
[WhiteClock "0:00:28"]
[BlackClock "0:00:18"]

1. d4 {[%clk 0:03:00]}  Nf6 {[%clk 0:02:45]} 2. c4 {[%clk 0:03:00]}  e6 {[%clk 0:02:45]} 3. Nf3 {[%clk 0:03:00]}  d5 {[%clk 0:02:44]} 4. Nc3 {[%clk 0:03:00]}  Bb4 {[%clk 0:02:43]} 5. Bg5 {[%clk 0:03:00]}  O-O {[%clk 0:02:43]} 6. e3 {[%clk 0:03:00]}  c5 {[%clk 0:02:42]} 7. Be2 {[%clk 0:03:00]}  cxd4 {[%clk 0:02:39]} 8. exd4 {[%clk 0:03:01]}  h6 {[%clk 0:02:37]} 9. Bxf6 {[%clk 0:03:00]}  Qxf6 {[%clk 0:02:37]} 10. O-O {[%clk 0:03:01]}  dxc4 {[%clk 0:02:34]} 11. Bxc4 {[%clk 0:03:01]}  Nc6 {[%clk 0:02:34]} 12. Ne4 {[%clk 0:02:58]}  Qf4 {[%clk 0:02:23]} 13. Qc2 {[%clk 0:02:49]}  Rd8 {[%clk 0:02:03]} 14. Rad1 {[%clk 0:02:48]}  Be7 {[%clk 0:01:47]} 15. Rfe1 {[%clk 0:02:39]}  a6 {[%clk 0:01:42]} 16. a3 {[%clk 0:02:38]}  b5 {[%clk 0:01:39]} 17. Bxb5 {[%clk 0:02:06]}  axb5 {[%clk 0:01:19]} 18. Qxc6 {[%clk 0:02:05]}  Rb8 {[%clk 0:01:18]} 19. Ne5 {[%clk 0:01:53]}  Bb7 {[%clk 0:01:11]} 20. Qc7 {[%clk 0:01:52]}  Bxe4 {[%clk 0:00:52]} 21. Qxe7 {[%clk 0:01:49]}  Bd5 {[%clk 0:00:52]} 22. Re3 {[%clk 0:01:36]}  Re8 {[%clk 0:00:51]} 23. Qb4 {[%clk 0:01:33]}  f6 {[%clk 0:00:49]} 24. Nd7 {[%clk 0:01:32]}  Qg4 {[%clk 0:00:47]} 25. f3 {[%clk 0:01:27]}  Qg5 {[%clk 0:00:41]} 26. Qd2 {[%clk 0:01:25]}  Rbd8 {[%clk 0:00:41]} 27. Nc5 {[%clk 0:01:24]}  h5 {[%clk 0:00:35]} 28. Rde1 {[%clk 0:01:18]}  h4 {[%clk 0:00:33]} 29. Qf2 {[%clk 0:01:18]}  h3 {[%clk 0:00:33]} 30. g3 {[%clk 0:01:18]}  Rd6 {[%clk 0:00:24]} 31. f4 {[%clk 0:01:16]}  Qg4 {[%clk 0:00:24]} 32. R3e2 {[%clk 0:01:04]}  Rc8 {[%clk 0:00:21]} 33. b4 {[%clk 0:01:01]}  Ra8 {[%clk 0:00:20]} 34. Re3 {[%clk 0:01:00]}  Rb6 {[%clk 0:00:18]} 35. Qe2 {[%clk 0:00:54]}  Qf5 {[%clk 0:00:17]} 36. Qd3 {[%clk 0:00:46]}  Qg4 {[%clk 0:00:17]} 37. Qd1 {[%clk 0:00:44]}  Qf5 {[%clk 0:00:17]} 38. Qb1 {[%clk 0:00:42]}  Qg4 {[%clk 0:00:17]} 39. Qd3 {[%clk 0:00:39]}  Rd6 {[%clk 0:00:17]} 40. Qxb5 {[%clk 0:00:36]}  Bc6 {[%clk 0:00:17]} 41. Qc4 {[%clk 0:00:35]}  Rad8 {[%clk 0:00:14]} 42. Qe2 {[%clk 0:00:25]}  Qf5 {[%clk 0:00:14]} 43. Nxe6 {[%clk 0:00:25]}  Re8 {[%clk 0:00:12]} 44. Nxg7 {[%clk 0:00:21]}  Rxe3 {[%clk 0:00:12]} 45. Nxf5 {[%clk 0:00:21]}  Rxe2 {[%clk 0:00:13]} 46. Rxe2 {[%clk 0:00:21]}  Rd5 {[%clk 0:00:13]} 47. Ne7+ {[%clk 0:00:21]}  Kf7 {[%clk 0:00:14]} 48. Nxd5 {[%clk 0:00:22]}  Bxd5 {[%clk 0:00:14]} 49. Rc2 {[%clk 0:00:22]}  Be4 {[%clk 0:00:15]} 50. Rc7+ {[%clk 0:00:23]}  Ke6 {[%clk 0:00:15]} 51. Rc5 {[%clk 0:00:24]}  f5 {[%clk 0:00:15]} 52. Kf2 {[%clk 0:00:25]}  Bd5 {[%clk 0:00:15]} 53. Ke3 {[%clk 0:00:26]}  Be4 {[%clk 0:00:16]} 54. Re5+ {[%clk 0:00:26]}  Kd6 {[%clk 0:00:17]} 55. Rxe4 {[%clk 0:00:27]}  fxe4 {[%clk 0:00:17]} 56. Kxe4 {[%clk 0:00:27]}  Ke6 {[%clk 0:00:18]} 57. d5+ {[%clk 0:00:28]} 1-0


[Site "https://www.chess.com"]

[Event "Titled Tuesday Blitz January 25 2022"]
[White "Osmak, Yuliia"]
[Black "Tikhonov, Viacheslav"]
[WhiteFideId "14101602"]
[BlackFideId "44196407"]
[WhiteElo "2302"]
[BlackElo "1773"]
[Result "1/2-1/2"]
[Round "10"]
[TimeControl "180+1"]
[Date "2022.01.26"]
[WhiteClock "0:00:08"]
[BlackClock "0:00:09"]

1. e4 {[%clk 0:03:00]}  e6 {[%clk 0:02:59]} 2. d4 {[%clk 0:02:58]}  d5 {[%clk 0:03:00]} 3. e5 {[%clk 0:02:58]}  c5 {[%clk 0:02:58]} 4. c3 {[%clk 0:02:59]}  Qb6 {[%clk 0:02:58]} 5. Nf3 {[%clk 0:02:58]}  Nc6 {[%clk 0:02:58]} 6. Bd3 {[%clk 0:02:58]}  cxd4 {[%clk 0:02:58]} 7. O-O {[%clk 0:02:58]}  Nge7 {[%clk 0:02:58]} 8. Re1 {[%clk 0:02:38]}  Bd7 {[%clk 0:02:50]} 9. h4 {[%clk 0:02:36]}  Rc8 {[%clk 0:02:37]} 10. a3 {[%clk 0:02:29]}  Nf5 {[%clk 0:02:14]} 11. Bxf5 {[%clk 0:02:27]}  exf5 {[%clk 0:02:15]} 12. cxd4 {[%clk 0:02:23]}  Be6 {[%clk 0:02:06]} 13. Nc3 {[%clk 0:02:22]}  Na5 {[%clk 0:02:03]} 14. Na4 {[%clk 0:01:42]}  Qb3 {[%clk 0:01:59]} 15. Bd2 {[%clk 0:01:38]}  Qxd1 {[%clk 0:01:57]} 16. Rexd1 {[%clk 0:01:37]}  Nb3 {[%clk 0:01:47]} 17. Rab1 {[%clk 0:01:19]}  Be7 {[%clk 0:01:46]} 18. Bg5 {[%clk 0:00:49]}  h6 {[%clk 0:01:30]} 19. Bxe7 {[%clk 0:00:48]}  Kxe7 {[%clk 0:01:31]} 20. Rd3 {[%clk 0:00:42]}  Na5 {[%clk 0:01:11]} 21. Rc3 {[%clk 0:00:25]}  b6 {[%clk 0:01:01]} 22. Rbc1 {[%clk 0:00:21]}  Bd7 {[%clk 0:01:00]} 23. Rxc8 {[%clk 0:00:20]}  Rxc8 {[%clk 0:01:01]} 24. Rxc8 {[%clk 0:00:20]}  Bxc8 {[%clk 0:01:02]} 25. Nc3 {[%clk 0:00:20]}  Be6 {[%clk 0:00:56]} 26. Nd2 {[%clk 0:00:19]}  a6 {[%clk 0:00:47]} 27. b4 {[%clk 0:00:18]}  Nc6 {[%clk 0:00:44]} 28. Nb3 {[%clk 0:00:18]}  f4 {[%clk 0:00:42]} 29. Na4 {[%clk 0:00:17]}  b5 {[%clk 0:00:35]} 30. Nac5 {[%clk 0:00:17]}  Bc8 {[%clk 0:00:33]} 31. g3 {[%clk 0:00:15]}  fxg3 {[%clk 0:00:32]} 32. fxg3 {[%clk 0:00:15]}  f6 {[%clk 0:00:33]} 33. exf6+ {[%clk 0:00:14]}  Kxf6 {[%clk 0:00:34]} 34. Kf2 {[%clk 0:00:15]}  Kf5 {[%clk 0:00:34]} 35. Kf3 {[%clk 0:00:14]}  h5 {[%clk 0:00:33]} 36. Nd3 {[%clk 0:00:11]}  g5 {[%clk 0:00:30]} 37. hxg5 {[%clk 0:00:10]}  Kxg5 {[%clk 0:00:31]} 38. Nf4 {[%clk 0:00:10]}  Bg4+ {[%clk 0:00:23]} 39. Ke3 {[%clk 0:00:10]}  Ne7 {[%clk 0:00:22]} 40. Nc5 {[%clk 0:00:09]}  Nf5+ {[%clk 0:00:22]} 41. Kf2 {[%clk 0:00:08]}  Nxd4 {[%clk 0:00:22]} 42. Nxa6 {[%clk 0:00:08]}  Nc2 {[%clk 0:00:20]} 43. Nxd5 {[%clk 0:00:07]}  Nxa3 {[%clk 0:00:20]} 44. Nac7 {[%clk 0:00:06]}  Bd7 {[%clk 0:00:17]} 45. Nc3 {[%clk 0:00:03]}  Kf5 {[%clk 0:00:14]} 46. Kf3 {[%clk 0:00:02]}  Ke5 {[%clk 0:00:14]} 47. Ke3 {[%clk 0:00:03]}  Kd6 {[%clk 0:00:14]} 48. N7d5 {[%clk 0:00:02]}  Ke5 {[%clk 0:00:14]} 49. Nf4 {[%clk 0:00:02]}  Nc4+ {[%clk 0:00:14]} 50. Kf2 {[%clk 0:00:02]}  Be8 {[%clk 0:00:14]} 51. Nd3+ {[%clk 0:00:01]}  Kd4 {[%clk 0:00:15]} 52. Nxb5+ {[%clk 0:00:02]}  Bxb5 {[%clk 0:00:12]} 53. Nf4 {[%clk 0:00:02]}  Be8 {[%clk 0:00:13]} 54. Ne6+ {[%clk 0:00:02]}  Kc3 {[%clk 0:00:12]} 55. Ng7 {[%clk 0:00:02]}  Bg6 {[%clk 0:00:11]} 56. b5 {[%clk 0:00:02]}  Kb4 {[%clk 0:00:12]} 57. Kf3 {[%clk 0:00:02]}  Kxb5 {[%clk 0:00:12]} 58. Kf4 {[%clk 0:00:03]}  Kc5 {[%clk 0:00:10]} 59. Kg5 {[%clk 0:00:03]}  Bf7 {[%clk 0:00:08]} 60. Nxh5 {[%clk 0:00:04]}  Kd6 {[%clk 0:00:08]} 61. Nf4 {[%clk 0:00:04]}  Ke5 {[%clk 0:00:07]} 62. g4 {[%clk 0:00:04]}  Nd6 {[%clk 0:00:05]} 63. Nd3+ {[%clk 0:00:04]}  Kd4 {[%clk 0:00:06]} 64. Nf4 {[%clk 0:00:04]}  Ke5 {[%clk 0:00:06]} 65. Nd3+ {[%clk 0:00:04]}  Ke6 {[%clk 0:00:07]} 66. Nf4+ {[%clk 0:00:04]}  Ke7 {[%clk 0:00:07]} 67. Nd3 {[%clk 0:00:04]}  Bc4 {[%clk 0:00:07]} 68. Ne5 {[%clk 0:00:04]}  Bd5 {[%clk 0:00:06]} 69. Kf4 {[%clk 0:00:05]}  Ke6 {[%clk 0:00:06]} 70. g5 {[%clk 0:00:05]}  Ne8 {[%clk 0:00:05]} 71. Nf3 {[%clk 0:00:05]}  Ng7 {[%clk 0:00:04]} 72. Nd4+ {[%clk 0:00:05]}  Kf7 {[%clk 0:00:03]} 73. Nf5 {[%clk 0:00:06]}  Bb3 {[%clk 0:00:04]} 74. Nxg7 {[%clk 0:00:05]}  Kxg7 {[%clk 0:00:05]} 75. Kf5 {[%clk 0:00:06]}  Bc2+ {[%clk 0:00:05]} 76. Kf4 {[%clk 0:00:06]}  Bg6 {[%clk 0:00:06]} 77. Kg4 {[%clk 0:00:07]}  Kf7 {[%clk 0:00:07]} 78. Kf4 {[%clk 0:00:07]}  Kg7 {[%clk 0:00:08]} 79. Kg4 {[%clk 0:00:08]}  Kf7 {[%clk 0:00:09]} 80. Kf4 {[%clk 0:00:08]}  Kg7 {[%clk 0:00:09]} 1/2-1/2


[Site "https://www.chess.com"]

[Event "Titled Tuesday Blitz January 25 2022"]
[White "Pap, Gyula"]
[Black "Nesterov, Arseniy"]
[WhiteFideId "725323"]
[BlackFideId "24198455"]
[WhiteElo "2553"]
[BlackElo "2489"]
[Result "0-1"]
[Round "10"]
[TimeControl "180+1"]
[Date "2022.01.26"]
[WhiteClock "0:00:01"]
[BlackClock "0:00:04"]

1. e4 {[%clk 0:03:00]}  e5 {[%clk 0:03:00]} 2. Nf3 {[%clk 0:03:01]}  Nc6 {[%clk 0:03:00]} 3. Nc3 {[%clk 0:03:00]}  Nf6 {[%clk 0:03:00]} 4. d4 {[%clk 0:03:01]}  exd4 {[%clk 0:02:59]} 5. Nxd4 {[%clk 0:03:02]}  Nxe4 {[%clk 0:03:00]} 6. Nxe4 {[%clk 0:02:59]}  Qe7 {[%clk 0:03:00]} 7. f3 {[%clk 0:01:45]}  d5 {[%clk 0:03:00]} 8. Bb5 {[%clk 0:01:46]}  Bd7 {[%clk 0:03:00]} 9. Bxc6 {[%clk 0:01:38]}  bxc6 {[%clk 0:03:00]} 10. O-O {[%clk 0:01:33]}  dxe4 {[%clk 0:03:00]} 11. Qe2 {[%clk 0:01:33]}  g6 {[%clk 0:02:18]} 12. Qxe4 {[%clk 0:01:24]}  Qxe4 {[%clk 0:02:17]} 13. fxe4 {[%clk 0:01:25]}  Bg7 {[%clk 0:02:16]} 14. c3 {[%clk 0:01:25]}  O-O {[%clk 0:02:14]} 15. Bf4 {[%clk 0:01:20]}  Rfe8 {[%clk 0:02:11]} 16. Rfe1 {[%clk 0:01:16]}  Rab8 {[%clk 0:02:02]} 17. Nb3 {[%clk 0:01:12]}  Be6 {[%clk 0:01:59]} 18. Bxc7 {[%clk 0:01:08]}  Rb7 {[%clk 0:01:58]} 19. Bd6 {[%clk 0:01:08]}  Bxb3 {[%clk 0:01:55]} 20. axb3 {[%clk 0:01:09]}  Rxb3 {[%clk 0:01:55]} 21. Rxa7 {[%clk 0:00:58]}  Rxb2 {[%clk 0:01:50]} 22. e5 {[%clk 0:00:59]}  Rd2 {[%clk 0:00:40]} 23. Rf1 {[%clk 0:00:33]}  Bxe5 {[%clk 0:00:38]} 24. Bxe5 {[%clk 0:00:34]}  Rxe5 {[%clk 0:00:38]} 25. Raxf7 {[%clk 0:00:27]}  Rc2 {[%clk 0:00:28]} 26. Rf8+ {[%clk 0:00:13]}  Kg7 {[%clk 0:00:28]} 27. R8f7+ {[%clk 0:00:14]}  Kh6 {[%clk 0:00:29]} 28. R7f3 {[%clk 0:00:14]}  Ree2 {[%clk 0:00:27]} 29. Rg3 {[%clk 0:00:08]}  Kg7 {[%clk 0:00:24]} 30. h3 {[%clk 0:00:07]}  h5 {[%clk 0:00:23]} 31. Rff3 {[%clk 0:00:06]}  Re1+ {[%clk 0:00:10]} 32. Rf1 {[%clk 0:00:05]}  Rxf1+ {[%clk 0:00:07]} 33. Kxf1 {[%clk 0:00:06]}  Kf6 {[%clk 0:00:08]} 34. h4 {[%clk 0:00:05]}  c5 {[%clk 0:00:06]} 35. Ke1 {[%clk 0:00:05]}  c4 {[%clk 0:00:05]} 36. Rf3+ {[%clk 0:00:04]}  Ke6 {[%clk 0:00:05]} 37. Rg3 {[%clk 0:00:04]}  Kf5 {[%clk 0:00:06]} 38. Rg5+ {[%clk 0:00:05]}  Kf6 {[%clk 0:00:05]} 39. Rg3 {[%clk 0:00:05]}  Ra2 {[%clk 0:00:05]} 40. Rf3+ {[%clk 0:00:04]}  Ke6 {[%clk 0:00:05]} 41. Rg3 {[%clk 0:00:05]}  Kf5 {[%clk 0:00:05]} 42. Rg5+ {[%clk 0:00:05]}  Kf6 {[%clk 0:00:05]} 43. Rg3 {[%clk 0:00:06]}  Rc2 {[%clk 0:00:05]} 44. Rf3+ {[%clk 0:00:06]}  Ke5 {[%clk 0:00:05]} 45. Rg3 {[%clk 0:00:06]}  Kf5 {[%clk 0:00:03]} 46. Rg5+ {[%clk 0:00:05]}  Kf4 {[%clk 0:00:03]} 47. Rxg6 {[%clk 0:00:04]}  Rxc3 {[%clk 0:00:04]} 48. Rg5 {[%clk 0:00:02]}  Rc2 {[%clk 0:00:03]} 49. Kd1 {[%clk 0:00:02]}  Ra2 {[%clk 0:00:02]} 50. Rxh5 {[%clk 0:00:03]}  Rxg2 {[%clk 0:00:03]} 51. Rh8 {[%clk 0:00:02]}  Ke4 {[%clk 0:00:03]} 52. Re8+ {[%clk 0:00:01]}  Kd3 {[%clk 0:00:03]} 53. Rd8+ {[%clk 0:00:02]}  Kc3 {[%clk 0:00:04]} 54. Rd6 {[%clk 0:00:01]}  Rh2 {[%clk 0:00:04]} 0-1


[Site "https://www.chess.com"]